bitfinex/quotes_BTCUSD_20240623
["timestamp","ask_amount","ask_price","bid_price","bid_amount"]
[1719185796688,3.58612113,63531.0,63530.0,0.000935]
[1719185796867,3.78601901,63531.0,63530.0,0.000935]
[1719185797071,3.64920413,63531.0,63530.0,0.000935]
[1719185797279,3.84910201,63531.0,63530.0,0.000935]
[1719185797477,3.84936522,63531.0,63530.0,0.000935]
[1719185798164,4.2098897,63531.0,63530.0,0.000935]
[1719185798332,4.47482231,63531.0,63530.0,0.000935]
[1719185798567,4.66339877,63531.0,63530.0,0.000935]
[1719185798898,4.65239877,63531.0,63530.0,0.000935]
[1719185799301,4.51629127,63531.0,63530.0,0.000935]
[1719185799503,4.53029127,63531.0,63530.0,0.000935]
[1719185799940,3.31589627,63531.0,63530.0,0.000935]
[1719185800272,7.60658527,63531.0,63530.0,0.000935]
[1719185800471,7.32689188,63531.0,63530.0,0.000935]
[1719185800616,7.73871054,63531.0,63530.0,0.000935]
[1719185801043,7.73871038,63531.0,63530.0,0.000935]
[1719185801249,7.89636164,63531.0,63530.0,0.000935]
[1719185802026,1.95152288,63524.0,63523.0,0.22364675]
[1719185802248,6.92297637,63524.0,63523.0,0.22364675]
[1719185802454,6.79766605,63524.0,63523.0,0.22364675]
[1719185802658,6.93754695,63524.0,63523.0,0.22364675]
[1719185802858,6.93754695,63524.0,63523.0,0.24664675]
[1719185802859,6.73764907,63524.0,63523.0,0.24664675]
[1719185803265,7.09936935,63524.0,63523.0,0.22364675]
[1719185803476,7.69479264,63524.0,63523.0,0.22364675]
[1719185803642,7.69463751,63524.0,63523.0,0.05119502]
[1719185803841,7.49498357,63524.0,63523.0,2e-08]
[1719185804068,2.40502953,63514.0,63513.0,0.00427012]
[1719185804385,8.03340211,63514.0,63513.0,0.00427012]
[1719185804588,7.58506125,63514.0,63513.0,0.00427012]
[1719185804798,7.44496236,63514.0,63513.0,0.00427012]
[1719185804949,7.5850105,63514.0,63513.0,0.00427012]
[1719185805180,7.64980186,63514.0,63513.0,0.00427012]
[1719185805386,7.50975372,63514.0,63513.0,0.00427012]
[1719185806031,7.42375372,63514.0,63513.0,0.02727012]
[1719185806237,7.52375372,63514.0,63513.0,0.00427012]
[1719185806610,7.53832171,63514.0,63513.0,0.00427012]
[1719185806773,7.31411467,63514.0,63513.0,0.00427012]
[1719185807135,7.538322,63514.0,63513.0,0.00427012]
[1719185807514,7.524322,63514.0,63513.0,0.00427012]
[1719185807917,7.538322,63514.0,63513.0,0.00427012]
[1719185808134,7.538322,63514.0,63472.0,0.05]
[1719185808135,0.314986,63495.0,63472.0,0.05]
[1719185808309,0.5,63501.0,63434.0,0.0018]
[1719185808310,0.00973165,63461.0,63434.0,0.0018]
[1719185808555,0.0946,63468.0,63427.0,0.04906725]
[1719185808556,0.99792453,63428.0,63427.0,0.0521611]
[1719185808746,0.99792453,63428.0,63422.0,0.00089143]
[1719185808747,0.56485238,63423.0,63422.0,0.00089143]
[1719185808951,1.72025906,63423.0,63422.0,0.00089143]
[1719185809151,0.98311119,63423.0,63411.0,0.0005]
[1719185809358,0.98311119,63423.0,63411.0,0.1005]
[1719185809359,0.15687358,63420.0,63411.0,0.1005]
[1719185809563,0.1147701,63423.0,63418.0,0.1]
[1719185809564,0.5427575,63419.0,63418.0,0.1]
[1719185809792,0.09287394,63419.0,63418.0,0.2248]
[1719185809945,0.09287394,63419.0,63414.0,0.166]
[1719185809946,0.17241311,63419.0,63414.0,0.1]
[1719185810179,0.17241311,63419.0,63411.0,0.0005]
[1719185810180,0.4673,63417.0,63411.0,0.0005]
[1719185810373,0.0946,63415.0,63411.0,0.0005]
[1719185810574,0.567688,63413.0,63411.0,0.0005]
[1719185810776,2.67095363,63413.0,63411.0,0.0005]
[1719185811033,2.8011224,63413.0,63411.0,0.0005]
[1719185811177,2.65240372,63413.0,63411.0,0.0005]
[1719185811400,2.80292984,63413.0,63411.0,0.0005]
[1719185811605,2.80292984,63413.0,63407.0,0.53388774]
[1719185811606,2.58214922,63413.0,63407.0,0.53388774]
[1719185811807,0.20980156,63408.0,63407.0,0.53388774]
[1719185812171,4.0712829,63408.0,63407.0,0.53388774]
[1719185812363,4.0712829,63408.0,63376.0,0.00257163]
[1719185812364,0.5,63401.0,63376.0,0.00257163]
[1719185812560,0.66245258,63400.0,63376.0,0.00257163]
[1719185812713,0.20647713,63399.0,63377.0,0.1]
[1719185812911,1.11020113,63398.0,63377.0,0.1]
[1719185813135,2.23317613,63397.0,63377.0,0.1]
[1719185813375,0.01435728,63398.0,63393.0,0.1]
[1719185813607,0.345038,63397.0,63393.0,0.1]
[1719185813776,0.345038,63397.0,63391.0,0.1]
[1719185813978,0.49770048,63396.0,63392.0,0.1]
[1719185814180,0.18918,63395.0,63392.0,0.1]
[1719185814380,0.01195048,63396.0,63392.0,0.1]
[1719185814580,0.14218,63395.0,63392.0,0.1]
[1719185814817,0.1,63394.0,63393.0,0.42]
[1719185815037,0.1,63398.0,63395.0,0.32]
[1719185815243,0.307083,63397.0,63396.0,0.023]
[1719185815451,0.273387,63397.0,63396.0,0.023]
[1719185815637,0.42594812,63397.0,63396.0,0.023]
[1719185816042,0.1,63397.0,63396.0,0.343]
[1719185816342,0.0157,63400.0,63399.0,0.2]
[1719185816540,0.0157,63408.0,63407.0,0.22]
[1719185816820,0.16826112,63408.0,63407.0,0.343]
[1719185817024,0.26826112,63408.0,63407.0,0.123]
[1719185817248,0.15256112,63408.0,63407.0,0.023]
[1719185817441,0.15256112,63408.0,63407.0,0.343]
[1719185817865,0.0157,63416.0,63410.0,0.3]
[1719185818071,0.29148112,63415.0,63413.0,0.1]
[1719185818270,0.29148112,63415.0,63414.0,0.343]
[1719185818271,0.15256112,63415.0,63414.0,0.343]
[1719185818578,0.0157,63416.0,63415.0,0.2]
[1719185818859,0.0157,63416.0,63415.0,0.443]
[1719185819215,0.0157,63416.0,63415.0,0.600691]
[1719185819437,0.0157,63416.0,63415.0,0.610691]
[1719185819639,0.0157,63430.0,63429.0,0.22]
[1719185819843,0.16826112,63430.0,63429.0,0.123]
[1719185820252,0.16826112,63430.0,63425.0,0.2742]
[1719185820458,0.0157,63430.0,63425.0,0.32614452]
[1719185820657,0.0157,63430.0,63429.0,0.22]
[1719185821017,0.0157,63430.0,63429.0,0.692969]
[1719185821255,0.0157,63430.0,63429.0,0.990682]
[1719185821482,0.46604476,63450.0,63429.0,0.315313]
[1719185821659,0.15256112,63449.0,63439.0,0.1676]
[1719185821861,0.15256112,63449.0,63440.0,0.00315221]
[1719185822062,0.15256112,63449.0,63435.0,0.07764518]
[1719185822063,0.01195048,63448.0,63436.0,0.00315221]
[1719185822240,0.15256112,63447.0,63437.0,0.157635]
[1719185822442,0.15256112,63447.0,63446.0,0.2024]
[1719185822641,0.15256112,63447.0,63446.0,0.2254]
[1719185823257,0.0946,63459.0,63453.0,0.2024]
[1719185823528,0.0157,63460.0,63454.0,0.023]
[1719185823529,0.62881012,63458.0,63454.0,0.023]
[1719185823745,0.499069,63457.0,63454.0,0.023]
[1719185823873,0.51622012,63456.0,63452.0,0.023]
[1719185824104,0.15256112,63456.0,63455.0,0.2024]
[1719185824306,0.0157,63460.0,63458.0,0.2024]
[1719185824307,0.414129,63459.0,63458.0,0.2024]
[1719185824498,0.01195048,63456.0,63455.0,0.2024]
[1719185824694,0.264049,63456.0,63455.0,0.2254]
[1719185824897,0.15256112,63459.0,63458.0,0.2024]
[1719185825308,0.15256112,63459.0,63458.0,0.2254]
[1719185825513,0.0946,63469.0,63458.0,0.2254]
[1719185825514,0.00851,63472.0,63458.0,0.2254]
[1719185825727,0.2302063,63459.0,63434.0,0.1299]
[1719185825935,0.01,63449.0,63436.0,0.46604476]
[1719185826143,1.982346,63448.0,63436.0,0.46604476]
[1719185826344,0.15255414,63447.0,63431.0,0.2024]
[1719185826544,2.102129,63446.0,63431.0,0.2024]
[1719185826753,1.79139612,63445.0,63431.0,0.2024]
[1719185826958,1.79139612,63445.0,63430.0,0.1566]
[1719185826959,1.214486,63444.0,63430.0,0.359]
[1719185827176,1.09247412,63443.0,63434.0,0.2024]
[1719185827381,0.369211,63442.0,63437.0,0.2024]
[1719185827582,0.15256112,63441.0,63435.0,0.2024]
[1719185827781,0.1,63440.0,63436.0,0.2024]
[1719185827916,0.15256112,63439.0,63436.0,0.2024]
[1719185828119,0.15256112,63439.0,63437.0,0.023]
[1719185828309,0.1,63438.0,63437.0,0.2254]
[1719185828510,0.25256112,63438.0,63437.0,0.2254]
[1719185829967,0.1,63438.0,63437.0,0.2254]
[1719185830160,0.1946,63455.0,63442.0,0.2024]
[1719185830364,1.13963312,63454.0,63445.0,0.04055314]
[1719185830569,1.13963312,63454.0,63446.0,0.023]
[1719185830570,0.161403,63453.0,63446.0,0.023]
[1719185830790,0.25256112,63452.0,63446.0,0.023]
[1719185830944,0.279505,63451.0,63445.0,0.06355314]
[1719185831149,0.25256112,63450.0,63445.0,0.06355314]
[1719185831565,0.01215977,63449.0,63448.0,0.05055314]
[1719185831832,0.16472089,63449.0,63448.0,0.023]
[1719185831991,0.26472089,63449.0,63447.0,0.023]
[1719185832163,0.25256112,63448.0,63447.0,0.023]
[1719185832557,0.25256112,63448.0,63447.0,0.07355314]
[1719185832807,0.26473066,63448.0,63447.0,0.38877614]
[1719185833011,0.01216954,63448.0,63447.0,0.61678935]
[1719185833226,0.01216954,63448.0,63447.0,0.93201235]
[1719185833425,0.0311,63463.0,63456.0,0.04055314]
[1719185833632,0.31505112,63457.0,63456.0,0.05055314]
[1719185833852,0.32722334,63457.0,63456.0,0.07355314]
[1719185834052,0.32722334,63457.0,63456.0,0.06355314]
[1719185834223,0.32722334,63457.0,63456.0,0.023]
[1719185834461,0.32722334,63457.0,63454.0,0.04055314]
[1719185834664,0.32722334,63457.0,63455.0,0.023]
[1719185834665,0.16473334,63457.0,63455.0,0.023]
[1719185834793,0.16473334,63457.0,63455.0,0.07355314]
[1719185834997,0.16473334,63457.0,63456.0,0.05055314]
[1719185835220,0.16473334,63457.0,63456.0,0.06355314]
[1719185835492,0.36830781,63457.0,63456.0,0.06355314]
[1719185835928,0.36830781,63457.0,63442.0,0.481246]
[1719185835929,0.01,63456.0,63440.0,0.04055314]
[1719185836130,0.01,63452.0,63434.0,0.05055314]
[1719185836354,0.01,63452.0,63431.0,0.46604476]
[1719185836355,0.01,63450.0,63435.0,0.05055314]
[1719185836577,1.52300696,63449.0,63435.0,0.05055314]
[1719185836716,1.74175696,63448.0,63438.0,0.04055314]
[1719185836918,0.69764396,63447.0,63441.0,0.05055314]
[1719185837124,0.42206608,63446.0,63442.0,0.04055314]
[1719185837375,0.35696396,63445.0,63442.0,0.04055314]
[1719185837513,0.40951508,63444.0,63441.0,0.04055314]
[1719185837719,0.35544438,63443.0,63442.0,0.04055314]
[1719185837923,0.35544438,63443.0,63442.0,0.05055314]
[1719185838169,0.35544438,63443.0,63442.0,0.07355314]
[1719185838339,0.11504336,63443.0,63442.0,0.54642514]
[1719185838540,0.01015798,63443.0,63442.0,0.86167314]
[1719185838720,0.1,63451.0,63450.0,0.05055314]
[1719185838929,0.25779679,63451.0,63450.0,0.07355314]
[1719185839232,0.36624406,63451.0,63450.0,0.07355314]
[1719185839453,0.21368294,63451.0,63450.0,0.32125314]
[1719185839649,0.00844727,63451.0,63450.0,0.47885714]
[1719185839916,0.2646,63471.0,63456.0,0.157589]
[1719185839917,0.46604476,63470.0,63456.0,0.157589]
[1719185840118,0.46720341,63469.0,63462.0,0.05055314]
[1719185840255,1.85226274,63468.0,63462.0,0.05055314]
[1719185840476,0.23492387,63469.0,63463.0,0.023]
[1719185840477,1.95478186,63467.0,63463.0,0.023]
[1719185840706,1.79227222,63466.0,63463.0,0.0103045]
[1719185841031,0.25688134,63465.0,63460.0,0.04055314]
[1719185841343,0.11276749,63464.0,63463.0,0.05055314]
[1719185841545,0.26532861,63464.0,63463.0,0.05055314]
[1719185841867,0.36532861,63464.0,63455.0,0.157591]
[1719185842066,0.35688134,63463.0,63455.0,0.2773301]
[1719185842288,0.10432022,63462.0,63455.0,0.2773301]
[1719185842490,0.35688134,63461.0,63455.0,0.2773301]
[1719185842690,0.10432022,63460.0,63459.0,0.05055314]
[1719185842946,0.20432022,63460.0,63459.0,0.07355314]
[1719185843110,0.21276749,63460.0,63459.0,0.07355314]
[1719185843631,0.08072163,63475.0,63465.0,0.05055314]
[1719185843792,2.81948117,63474.0,63466.0,0.06355314]
[1719185844001,2.041748,63473.0,63466.0,0.06355314]
[1719185844198,0.37043816,63472.0,63466.0,0.06355314]
[1719185844458,0.37043816,63472.0,63469.0,0.05055314]
[1719185844459,0.21787691,63471.0,63469.0,0.05055314]
[1719185844657,2.21646603,63470.0,63468.0,0.04055314]
[1719185844798,0.15256112,63470.0,63469.0,0.023]
[1719185845004,0.37043954,63470.0,63469.0,0.06355314]
[1719185845205,0.37043954,63470.0,63469.0,0.023]
[1719185845414,0.37043954,63470.0,63466.0,0.04055314]
[1719185845415,0.47043954,63470.0,63467.0,0.023]
[1719185845613,1.21002442,63469.0,63467.0,0.023]
[1719185845814,0.21787842,63468.0,63467.0,0.05055314]
[1719185846017,0.48940782,63468.0,63463.0,0.023]
[1719185846246,2.74890554,63467.0,63463.0,0.023]
[1719185846444,1.91703942,63466.0,63463.0,0.023]
[1719185846659,0.25256112,63467.0,63463.0,0.023]
[1719185846660,1.17839236,63465.0,63463.0,0.023]
[1719185846867,1.00188124,63464.0,63463.0,0.023]
[1719185847150,0.90948824,63464.0,63463.0,0.023]
[1719185847354,0.83267224,63464.0,63463.0,0.023]
[1719185847555,0.79939524,63464.0,63463.0,0.023]
[1719185847757,0.82764524,63464.0,63463.0,0.023]
[1719185848400,0.82764524,63464.0,63460.0,0.023]
[1719185848601,0.56462924,63463.0,63460.0,0.023]
[1719185848778,0.31775824,63462.0,63460.0,0.06355314]
[1719185849010,0.21775824,63461.0,63460.0,0.06355314]
[1719185849235,0.21775824,63461.0,63460.0,0.023]
[1719185849412,0.21775824,63461.0,63454.0,0.1617]
[1719185849413,0.37031936,63461.0,63455.0,0.023]
[1719185849642,0.2182246,63460.0,63455.0,0.023]
[1719185849846,0.2182246,63459.0,63455.0,0.023]
[1719185850086,0.1,63464.0,63448.0,0.05055314]
[1719185850087,0.37078572,63458.0,63448.0,0.05055314]
[1719185850309,0.37078572,63458.0,63445.0,0.19825314]
[1719185850310,0.2182246,63457.0,63445.0,0.19825314]
[1719185850565,0.07764518,63446.0,63437.0,0.1577]
[1719185850776,0.17224518,63453.0,63438.0,0.05055314]
[1719185850777,0.2182246,63445.0,63438.0,0.05055314]
[1719185850967,0.3182246,63444.0,63432.0,0.2597]
[1719185851176,0.37078572,63443.0,63436.0,0.04055314]
[1719185851307,0.9092406,63442.0,63436.0,0.04055314]
[1719185851510,0.91819872,63441.0,63436.0,0.04055314]
[1719185851868,0.5919736,63440.0,63436.0,0.04055314]
[1719185852070,0.63639496,63439.0,63438.0,0.05055314]
[1719185852207,0.37790796,63439.0,63436.0,0.04055314]
[1719185852428,0.21840978,63438.0,63436.0,0.04055314]
[1719185852656,0.3709709,63437.0,63434.0,0.05055314]
[1719185852852,0.22553171,63436.0,63435.0,0.05055314]
[1719185853054,0.22553171,63436.0,63434.0,0.05055314]
[1719185853253,0.00712224,63436.0,63435.0,0.07355314]
[1719185853457,0.00712224,63436.0,63435.0,0.023]
[1719185853458,0.209167,63436.0,63435.0,0.023]
[1719185853657,0.37950271,63436.0,63435.0,0.023]
[1719185853868,0.37950271,63436.0,63433.0,0.023]
[1719185854066,0.21980726,63435.0,63433.0,0.023]
[1719185854341,0.21980726,63434.0,63433.0,0.023]
[1719185854546,0.47949062,63434.0,63430.0,0.000935]
[1719185854752,1.06191526,63433.0,63430.0,0.000935]
[1719185854919,1.00265338,63432.0,63430.0,0.000935]
[1719185855187,0.65416226,63431.0,63430.0,0.000935]
[1719185855411,0.79789368,63431.0,63420.0,0.04055314]
[1719185855649,2.45424014,63430.0,63418.0,0.05055314]
[1719185855882,2.45424014,63430.0,63424.0,0.04055314]
[1719185855883,1.06443902,63429.0,63424.0,0.04055314]
[1719185856040,0.97395549,63428.0,63423.0,0.04055314]
[1719185856243,0.66937202,63427.0,63424.0,0.04055314]
[1719185856450,0.71506414,63426.0,63420.0,0.05055314]
[1719185856649,0.57002037,63425.0,63424.0,0.04055314]
[1719185856836,0.66604049,63425.0,63424.0,0.06355314]
[1719185857033,0.63985549,63425.0,63424.0,0.06355314]
[1719185857234,0.48729437,63425.0,63424.0,0.07355314]
[1719185857432,0.32974837,63425.0,63424.0,0.07355314]
[1719185857630,0.20216291,63425.0,63424.0,0.07355314]
[1719185857837,0.10216291,63425.0,63424.0,0.23122214]
[1719185858060,0.09508456,63425.0,63424.0,0.07355314]
[1719185858262,0.09594717,63442.0,63434.0,0.05055314]
[1719185858467,3.34046122,63441.0,63435.0,0.023]
[1719185858665,3.28082998,63440.0,63435.0,0.07355314]
[1719185858824,2.7449381,63439.0,63435.0,0.023]
[1719185859026,3.4213591,63438.0,63429.0,0.02284949]
[1719185859234,3.2790801,63437.0,63429.0,0.02284949]
[1719185859433,3.28359162,63436.0,63429.0,0.02284949]
[1719185859676,0.22436398,63435.0,63432.0,0.04055314]
[1719185859855,0.0157,63443.0,63435.0,0.05055314]
[1719185860031,0.0157,63443.0,63433.0,0.25551983]
[1719185860032,0.76580659,63442.0,63441.0,0.05055314]
[1719185860258,0.67994959,63442.0,63441.0,0.05055314]
[1719185860464,0.67994959,63442.0,63441.0,0.05040002]
[1719185861087,0.66633259,63442.0,63441.0,0.05040002]
[1719185861288,0.44200312,63442.0,63441.0,0.023]
[1719185861460,0.66593523,63442.0,63441.0,0.023]
[1719185861667,0.01,63441.0,63426.0,0.04040002]
[1719185861904,0.04653548,63432.0,63419.0,0.04040002]
[1719185862102,0.04653548,63432.0,63413.0,0.157695]
[1719185862103,0.04653548,63430.0,63424.0,0.04040002]
[1719185862301,0.04653548,63430.0,63413.0,0.157695]
[1719185862302,0.04653548,63427.0,63416.0,0.04040002]
[1719185862571,0.04653548,63425.0,63416.0,0.04024227]
[1719185862693,0.04653548,63425.0,63412.0,0.2452]
[1719185862694,0.74146312,63424.0,63420.0,0.05024227]
[1719185862892,0.223894,63423.0,63420.0,0.04024227]
[1719185863127,0.37645512,63423.0,63417.0,0.04024227]
[1719185863338,0.0957101,63422.0,63417.0,0.04024227]
[1719185863946,0.0957101,63422.0,63420.0,0.05024227]
[1719185864259,0.19913214,63423.0,63421.0,0.023]
[1719185864461,0.1437528,63422.0,63421.0,0.023]
[1719185864981,0.3792955,63422.0,63417.0,0.023]
[1719185865263,0.2963122,63421.0,63417.0,0.023]
[1719185865513,0.09717146,63420.0,63417.0,0.06324227]
[1719185865941,0.09717146,63420.0,63419.0,0.05024227]
[1719185866153,0.09717146,63420.0,63419.0,0.07324227]
[1719185867098,0.15631827,63426.0,63424.0,0.04024227]
[1719185867323,0.30377612,63425.0,63424.0,0.04024227]
[1719185867532,0.53036576,63425.0,63424.0,0.06324227]
[1719185868185,0.53036576,63425.0,63424.0,0.07324227]
[1719185868399,0.60020457,63425.0,63424.0,0.07324227]
[1719185868767,0.09709564,63425.0,63424.0,0.07324227]
[1719185869738,0.09690589,63425.0,63424.0,0.07324227]
[1719185870507,0.14655603,63428.0,63427.0,0.05024227]
[1719185870705,0.29911715,63428.0,63427.0,0.07324227]
[1719185870908,0.29911752,63428.0,63427.0,0.07324227]
[1719185871774,0.1,63428.0,63427.0,0.23090327]
[1719185871976,0.1465564,63430.0,63429.0,0.05024227]
[1719185872210,0.1465564,63430.0,63429.0,0.07324227]
[1719185872211,0.15256112,63430.0,63429.0,0.07324227]
[1719185872549,0.1,63430.0,63429.0,0.07324227]
[1719185873556,0.04656137,63435.0,63433.0,0.36553527]
[1719185873748,0.063165,63439.0,63437.0,0.36551527]
[1719185873749,0.10972637,63439.0,63437.0,0.36551527]
[1719185874036,0.10972637,63439.0,63433.0,0.2482]
[1719185874037,0.04656137,63449.0,63445.0,0.05024227]
[1719185874235,0.04656137,63453.0,63452.0,0.05024227]
[1719185874460,0.10971137,63455.0,63454.0,0.05024227]
[1719185874660,0.15256112,63455.0,63454.0,0.07324227]
[1719185874856,0.19912249,63455.0,63454.0,0.07324227]
[1719185875383,0.15256112,63455.0,63454.0,0.07324227]
[1719185875588,0.19912249,63455.0,63454.0,0.07324227]
[1719185875796,0.19912249,63455.0,63444.0,0.315238]
[1719185875797,0.3990505,63455.0,63441.0,0.04024227]
[1719185875990,0.04656949,63449.0,63442.0,0.04024227]
[1719185876114,0.04656949,63446.0,63445.0,0.04024227]
[1719185876309,1.36298026,63446.0,63445.0,0.05024227]
[1719185876535,1.36307672,63446.0,63438.0,0.04024227]
[1719185876746,1.36307672,63446.0,63440.0,0.05024227]
[1719185876747,0.06984681,63441.0,63440.0,0.05024227]
[1719185876951,0.34862958,63441.0,63440.0,0.05024227]
[1719185877153,0.44862572,63441.0,63440.0,0.04024227]
[1719185877357,0.4451301,63441.0,63438.0,0.04024227]
[1719185877556,0.4411352,63440.0,63439.0,0.05024227]
[1719185877778,0.4411352,63440.0,63438.0,0.04024227]
[1719185878017,0.12622165,63439.0,63438.0,0.04024227]
[1719185878223,0.12622165,63439.0,63438.0,0.06324227]
[1719185878224,0.27878277,63439.0,63438.0,0.06324227]
[1719185878540,0.27878277,63439.0,63438.0,0.023]
[1719185878752,0.27878277,63439.0,63431.0,0.04024227]
[1719185878753,0.79002584,63439.0,63431.0,0.04024227]
[1719185878958,0.06983549,63433.0,63432.0,0.06324227]
[1719185879134,0.15256112,63433.0,63432.0,0.023]
[1719185879392,0.42875228,63433.0,63432.0,0.07324227]
[1719185879597,0.15256112,63433.0,63432.0,0.06324227]
[1719185879805,0.4292304,63433.0,63432.0,0.06324227]
[1719185879996,0.43033605,63433.0,63432.0,0.023]
[1719185880252,0.52344899,63433.0,63427.0,0.05024227]
[1719185880464,0.06983104,63428.0,63426.0,0.04024227]
[1719185880635,0.3735429,63427.0,63426.0,0.05024227]
[1719185880884,0.04655414,63429.0,63426.0,0.07324227]
[1719185881086,0.22112265,63428.0,63427.0,0.07324227]
[1719185881216,0.22112265,63428.0,63427.0,0.23090227]
[1719185881418,0.1,63432.0,63431.0,0.05024227]
[1719185881653,0.16983606,63433.0,63432.0,0.05024227]
[1719185881853,0.29142185,63433.0,63432.0,0.05024227]
[1719185882055,0.39142185,63433.0,63432.0,0.07324227]
[1719185882305,0.54398297,63433.0,63432.0,0.07324227]
[1719185882637,0.54398297,63433.0,63432.0,0.023]
[1719185882834,0.47414691,63433.0,63430.0,0.023]
[1719185883045,0.49146112,63431.0,63425.0,0.000935]
[1719185883259,0.09310844,63427.0,63425.0,0.000935]
[1719185883454,1.43168291,63426.0,63425.0,0.000935]
[1719185883700,1.91831403,63426.0,63425.0,0.000935]
[1719185883874,2.73872303,63426.0,63425.0,0.00024995]
[1719185884079,0.0946,63405.0,63386.0,0.04024227]
[1719185884312,1.11465123,63409.0,63404.0,0.46604476]
[1719185884508,1.11465123,63409.0,63392.0,0.05024227]
[1719185884509,0.44680904,63404.0,63392.0,0.05024227]
[1719185884755,0.04649491,63396.0,63386.0,0.04024227]
[1719185884899,1.02795694,63396.0,63383.0,0.70162131]
[1719185885112,1.1566892,63396.0,63384.0,0.46604476]
[1719185885310,1.1566892,63396.0,63383.0,0.70162131]
[1719185885311,0.74821159,63396.0,63386.0,0.04024227]
[1719185885874,0.71213242,63396.0,63386.0,0.04024227]
[1719185886310,0.78181163,63396.0,63386.0,0.04024227]
[1719185886522,0.78181163,63396.0,63393.0,0.04024227]
[1719185886523,0.59459342,63396.0,63393.0,0.04024227]
[1719185886744,0.47760242,63396.0,63395.0,0.05959227]
[1719185887124,0.09630904,63396.0,63395.0,1.038855]
[1719185887329,0.1,63403.0,63395.0,0.25015]
[1719185887529,0.1,63403.0,63402.0,0.20796527]
[1719185887856,0.3505,63404.0,63403.0,0.20796327]
[1719185887986,0.3505,63404.0,63403.0,0.54640527]
[1719185887987,0.44624464,63404.0,63403.0,0.54640527]
[1719185888406,0.59880576,63404.0,63403.0,0.05024227]
[1719185888608,0.59880576,63404.0,63397.0,0.04024227]
[1719185888835,0.59880576,63404.0,63395.0,0.00935]
[1719185888836,0.24830576,63403.0,63401.0,0.05024227]
[1719185889049,0.09500727,63402.0,63395.0,0.00935]
[1719185889247,0.59007112,63401.0,63397.0,0.04024227]
[1719185889592,0.09500727,63400.0,63399.0,0.05024227]
[1719185889805,0.24756839,63400.0,63399.0,0.05024227]
[1719185890234,0.24827502,63400.0,63395.0,0.16709]
[1719185890430,0.1,63403.0,63399.0,0.05024227]
[1719185890656,0.1,63403.0,63400.0,0.04024227]
[1719185890657,0.09549426,63402.0,63400.0,0.04024227]
[1719185890878,0.20716055,63401.0,63395.0,0.00935]
[1719185891056,1.11463094,63400.0,63395.0,0.00935]
[1719185891256,0.53693394,63399.0,63396.0,0.04024227]
[1719185891454,0.1464476,63400.0,63396.0,0.04024227]
[1719185891455,0.69017794,63398.0,63396.0,0.04024227]
[1719185891655,0.86577709,63397.0,63396.0,0.04024227]
[1719185891867,0.59059338,63397.0,63396.0,0.04024227]
[1719185892030,0.34805538,63397.0,63396.0,0.04024227]
[1719185892230,0.38277538,63397.0,63396.0,0.04024227]
[1719185892469,0.38277538,63397.0,63396.0,0.05024227]
[1719185892646,0.24805538,63397.0,63396.0,0.05024227]
[1719185893025,0.24805538,63397.0,63396.0,0.20798027]
[1719185893235,0.24864813,63397.0,63396.0,0.05024227]
[1719185894971,0.24864813,63397.0,63396.0,0.63494227]
[1719185896162,0.24869717,63397.0,63396.0,0.63494227]
[1719185896722,0.24869645,63397.0,63396.0,0.63494227]
[1719185896935,0.24863571,63397.0,63396.0,0.63494227]
[1719185897493,0.09613533,63397.0,63396.0,1.2429093]
[1719185897696,0.09613533,63403.0,63396.0,0.9274323]
[1719185897893,0.09613533,63403.0,63402.0,0.05024227]
[1719185898578,0.09613533,63403.0,63395.0,0.00935]
[1719185898781,0.90095833,63403.0,63395.0,0.00935]
[1719185898907,1.21648428,63402.0,63396.0,0.04024227]
[1719185899251,0.42946537,63401.0,63395.0,0.00935]
[1719185899485,0.71602649,63400.0,63395.0,0.00935]
[1719185899728,0.43051537,63399.0,63395.0,0.00935]
[1719185899836,0.45829649,63398.0,63395.0,0.00935]
[1719185900036,0.09619837,63397.0,63395.0,0.00935]
[1719185900286,0.15256112,63396.0,63395.0,0.00935]
[1719185900461,0.24875949,63396.0,63395.0,0.00935]
[1719185901100,0.09619837,63396.0,63395.0,0.167091]
[1719185901322,0.1,63401.0,63400.0,0.05024227]
[1719185901470,0.24959034,63401.0,63400.0,0.05024227]
[1719185901670,0.09702922,63401.0,63400.0,0.20797027]
[1719185901896,0.3505,63404.0,63401.0,0.157725]
[1719185902091,0.3505,63404.0,63403.0,0.05024227]
[1719185902333,0.18997545,63408.0,63403.0,0.54340527]
[1719185902532,0.18997545,63408.0,63401.0,0.2531]
[1719185902533,0.18997545,63408.0,63407.0,0.20795327]
[1719185902750,0.28728345,63408.0,63407.0,0.52337527]
[1719185902953,0.28728345,63408.0,63407.0,0.54637527]
[1719185903333,0.28728345,63408.0,63407.0,0.9499784]
[1719185903553,0.3505,63418.0,63417.0,0.05024227]
[1719185903755,0.60023524,63418.0,63417.0,0.05024227]
[1719185904012,0.60023524,63418.0,63417.0,0.20792827]
[1719185904213,0.60023524,63418.0,63417.0,0.52330027]
[1719185904361,0.44767412,63418.0,63417.0,1.17007227]
[1719185904577,0.1,63427.0,63426.0,0.52323427]
[1719185904578,0.063181,63427.0,63426.0,0.52323427]
[1719185904755,0.0971323,63427.0,63426.0,0.07324227]
[1719185904957,0.06969935,63437.0,63431.0,0.04024227]
[1719185904958,0.15256112,63434.0,63431.0,0.04024227]
[1719185905254,0.16030972,63433.0,63431.0,0.04024227]
[1719185905480,0.06972562,63439.0,63431.0,0.04024227]
[1719185905481,0.24969695,63432.0,63431.0,0.04024227]
[1719185906436,0.24969695,63432.0,63430.0,0.04024227]
[1719185906638,0.15256112,63432.0,63430.0,0.04024227]
[1719185906769,0.09560603,63431.0,63430.0,0.05024227]
[1719185906971,0.24816715,63431.0,63430.0,0.05024227]
[1719185908020,0.24808689,63431.0,63430.0,0.05024227]
[1719185908322,0.09552577,63431.0,63430.0,0.05024227]
[1719185908742,0.1,63436.0,63434.0,0.05024227]
[1719185908944,0.6307718,63435.0,63434.0,0.05024227]
[1719185909148,0.7307718,63435.0,63434.0,0.05024227]
[1719185909905,0.5896998,63435.0,63434.0,0.05024227]
[1719185911421,0.46170946,63435.0,63434.0,0.05024227]
[1719185913295,0.46170946,63435.0,63433.0,0.04024227]
[1719185913426,0.09550346,63434.0,63433.0,0.04024227]
[1719185913627,0.09550346,63434.0,63433.0,0.06324227]
[1719185913828,0.09550346,63434.0,63433.0,0.07324227]
[1719185914031,0.278581,63434.0,63433.0,0.04024227]
[1719185914233,0.278581,63434.0,63417.0,0.876871]